[Event "Seniors-LEM-50 Sachsen-Anhalt 2024"]
[Site "Magdeburg"]
[Date "2024.07.01"]
[Round "1.16"]
[White "Wahrenberg, Ralf"]
[Black "Gaul, Karl-Heinz"]
[Result "1-0"]
[ECO "D02"]
[WhiteElo "1873"]
[BlackElo "1684"]
[Annotator "NA RC"]
[PlyCount "79"]
[EventDate "2024.06.25"]
[EventType "swiss"]
[EventCountry "GER"]
[SourceTitle "playchess.com"]
[Source "ChessBase"]
[SourceQuality "1"]
[TimeControl "40/5400+30:1800+30"]

1. d4 {[%emt 0:00:04]} d5 {[%emt 1:31:00]} 2. Nf3 {[%emt 1:31:26]} Nf6 {[%emt 0:00:30]} 3. Bf4 {[%emt 0:00:30]} g6 {[%emt 0:00:00]} 4. e3 {[%emt 0:00:00]} Bf5 {[%emt 0:00:00]} 5. Be2 {[%emt 0:00:00]} Nbd7 {[%emt 0:00:00]} 6. O-O {[%emt 0:00:00] D02: 1 d4 d5 2 Nf3 sidelines, including 2...Nf6 3 g3 and 2...Nf6 3 Bf4.} Nh5 {[%emt 0:00:00]} 7. Bg5 {[%emt 0:00:00]} h6 {[%emt 0:00:00]} 8. Bh4 {[%emt 0:00:00]} f6 {[%emt 0:00:00]} 9. Nfd2 {[%emt 0:00:00]} Ng7 {[%emt 0:00:00]} 10. f3 {[%emt 0:00:00]} e5 {[%emt 0:00:00]} 11. e4 {[%emt 0:00:00]} Be6 {[%emt 0:00:00]} 12. Nb3 {[%emt 0:00:00]} dxe4 {[%emt 0:00:00]} 13. fxe4 {[%emt 0:00:00]} Bxb3 {[%emt 0:00:00]} 14. axb3 {[%emt 0:00:00]} exd4 {[%emt 0:06:00]} 15. Kh1 {[%emt 0:06:00]} c5 {[%emt 0:00:00]} 16. Bb5 {[%emt 0:00:00]} g5 {[%emt 0:01:00]} 17. Bg3 {[%emt 0:01:00]} Qb6 {[%emt 0:00:00]} 18. Na3 {[%emt 0:00:00]} a6 {[%emt 0:00:00]} 19. Bxd7+ {[%emt 0:00:00]} Kxd7 {[%emt 0:00:00]} 20. c3 {[%emt 0:00:00]} Rd8 {[%emt 0:00:00]} 21. Nc4 {[%emt 0:00:00]} Qe6 {[%emt 0:00:00]} 22. cxd4 {[%emt 0:00:00]} Ke8 {[%emt 0:00:00]} 23. d5 {[%emt 0:00:00]} Qf7 {[%emt 0:03:30]} 24. Qf3 {[%emt 0:03:30]} Be7 {[%emt 0:00:00]} 25. d6 {[%emt 0:00:00]} Nh5 {[%emt 0:00:00]} 26. dxe7 {[%emt 0:00:00]} Nxg3+ {[%emt 0:01:30]} 27. Qxg3 {[%emt 0:01:30]} Qxe7 {[%emt 0:00:30]} 28. e5 {[%emt 0:00:30]} fxe5 {[%emt 0:00:00]} 29. Nxe5 {[%emt 0:00:00]} Rf8 {[%emt 0:00:00]} 30. Ng6 {[%emt 0:00:00]} Rxf1+ {[%emt 0:01:30]} 31. Rxf1 {[%emt 0:01:30]} Qe2 {[%emt 0:00:00]} 32. Rf8+ $18 {[%emt 0:00:00]} (32. Kg1 $142 Kd7 33. Re1 (33. Rf7+ Ke8 $18) 33... Qxb2 34. Re7+ (34. Rd1+ Kc6 $18) 34... Kc6 35. Ne5+ Kd6 36. Nc4+ (36. Rxb7 Qd4+ 37. Kf1 Qa1+ 38. Kf2 Qd4+ 39. Kf3 Qxe5 $11) 36... Kxe7 37. Qc7+ (37. Nxb2 Rd6 $18) 37... Ke8 38. Nxb2) 32... Kd7 {[%emt 0:00:00]} 33. Rxd8+ {[%emt 0:00:00]} Kxd8 {[%emt 0:00:00]} 34. Qd6+ {[%emt 0:00:00]} Ke8 {[%emt 0:00:00]} 35. h3 {[%emt 0:00:00]} g4 {[%emt 0:00:00]} 36. Qf8+ {[%emt 0:00:00]} Kd7 {[%emt 0:00:00]} 37. Qf5+ {[%emt 0:00:00]} Kc6 {[%emt 0:00:00]} 38. Ne5+ {[%emt 0:00:00]} Kb5 {[%emt 0:00:00]} 39. Qd7+ {[%emt 0:04:00]} Kb4 {[%emt 0:00:00]} 40. Qa4# {[%emt 0:00:00]} 1-0

[Event "Seniors-LEM-50 Sachsen-Anhalt 2024"]
[Site "Magdeburg"]
[Date "2024.07.02"]
[Round "2.1"]
[White "Weitz, Andreas"]
[Black "Puschendorf, Steffen"]
[Result "1-0"]
[ECO "D29"]
[WhiteElo "1936"]
[BlackElo "2067"]
[Annotator "NA RC"]
[PlyCount "77"]
[EventDate "2024.06.25"]
[EventType "swiss"]
[EventCountry "GER"]
[SourceTitle "playchess.com"]
[Source "ChessBase"]
[SourceQuality "1"]
[TimeControl "40/5400+30:1800+30"]

1. d4 {[%emt 1:31:00]} d5 {[%emt 0:00:18]} 2. c4 {[%emt 0:00:00]} e6 {[%emt 0:00:07]} 3. Nc3 {[%emt 0:00:00]} Nf6 {[%emt 0:00:10]} 4. Nf3 {[%emt 0:00:00]} a6 {[%emt 0:00:53]} 5. e3 {[%emt 0:00:00]} dxc4 {[%emt 0:06:53]} 6. Bxc4 {[%emt 0:00:00]} b5 {[%emt 0:00:24]} 7. Bb3 {[%emt 0:00:00]} Bb7 {[%emt 0:00:33]} 8. O-O {[%emt 0:00:00]} Nbd7 {[%emt 0:01:33]} 9. Qe2 {[%emt 0:00:00]} c5 {[%emt 0:07:24]} 10. Rd1 {[%emt 0:00:00]} Qc7 {[%emt 0:01:32]} 11. d5 {[%emt 0:00:00]} c4 {[%emt 0:05:53] 11...c4 is better than 11...exd5.} 12. dxe6 {[%emt 0:00:00]} fxe6 {[%emt 0:00:36]} 13. Bc2 {[%emt 0:00:00] D29: Queen's Gambit Accepted: Classical main line: 7 Qe2 with early ...Nbd7.} Bd6 {[%emt 0:06:14]} 14. e4 {[%emt 0:00:00]} O-O {[%emt 0:06:56]} 15. h3 {[%emt 0:00:00]} Ne5 {[%emt 0:04:39]} 16. Nd4 {[%emt 0:00:00]} Qe7 $146 {[%emt 0:08:37]} ({Predecessor:} 16... Qd7 17. f4 Nd3 18. Bxd3 Bc5 19. Bc2 Bxd4+ 20. Be3 Bxe3+ 21. Qxe3 Qc6 {0-1 Stevens,C (2260)-Atakhan,A (2358) Titled Tuesday intern op 31st May Early blitz 2022 (6)}) 17. a3 {[%emt 0:00:00]} Nfd7 {[%emt 0:02:42]} 18. f4 {[%emt 0:00:00]} Nc6 {[%emt 0:08:07]} 19. Nxc6 {[%emt 0:00:00]} Bxc6 {[%emt 0:00:06]} 20. e5 {[%emt 0:00:00]} Bc5+ {[%emt 0:00:31]} 21. Kh2 {[%emt 0:00:00]} Nb6 $14 {[%emt 0:07:48]} 22. Ne4 {[%emt 0:00:00]} Nd5 {[%emt 0:01:38]} 23. g3 {[%emt 0:00:00]} Rad8 {[%emt 0:02:32]} 24. Re1 {[%emt 0:00:00]} Qa7 {[%emt 0:05:44]} 25. Qg4 {[%emt 0:00:00]} Rde8 {[%emt 0:03:55]} 26. Ng5 {[%emt 0:00:00]} h6 {[%emt 0:04:49]} 27. Nxe6 {[%emt 0:00:00]} Bxa3 {[%emt 0:02:56]} 28. Qxg7+ {[%emt 0:00:00]} Qxg7 {[%emt 0:00:25]} 29. Nxg7 {[%emt 0:00:00]} Kxg7 {[%emt 0:03:25]} 30. bxa3 {[%emt 0:00:00]} Ne7 {[%emt 0:02:08]} 31. Be3 {[%emt 0:00:00]} Rd8 {[%emt 0:00:55]} 32. Rad1 {[%emt 0:00:00]} Bf3 {[%emt 0:00:25]} 33. Rd6 {[%emt 0:00:00]} Rxd6 {[%emt 0:01:38]} 34. exd6 {[%emt 0:00:00]} Nd5 {[%emt 0:01:46]} 35. Bd4+ {[%emt 0:00:00]} Kf7 {[%emt 0:00:16]} 36. Bf5 {[%emt 0:00:00]} Rd8 {[%emt 0:00:56]} 37. d7 {[%emt 0:00:00]} Ne7 {[%emt 0:01:59]} 38. Be6+ {[%emt 0:00:00]} Kf8 {[%emt 0:00:12]} 39. Bb6 {[%emt 0:00:00]} 1-0

[Event "Seniors-LEM-50 Sachsen-Anhalt 2024"]
[Site "Magdeburg"]
[Date "2024.07.02"]
[Round "2.2"]
[White "Hansch, Torsten"]
[Black "Schiller, Dirk"]
[Result "1/2-1/2"]
[ECO "D37"]
[WhiteElo "2047"]
[BlackElo "1885"]
[Annotator "NA RC"]
[PlyCount "156"]
[EventDate "2024.06.25"]
[EventType "swiss"]
[EventCountry "GER"]
[SourceTitle "playchess.com"]
[Source "ChessBase"]
[SourceQuality "1"]
[TimeControl "40/5400+30:1800+30"]

1. d4 {[%emt 0:00:04]} d5 {[%emt 0:00:19]} 2. c4 {[%emt 0:00:03]} e6 {[%emt 0:00:36]} 3. Nf3 {[%emt 0:00:10]} Nf6 {[%emt 0:00:45]} 4. Nc3 {[%emt 0:00:12]} Be7 {[%emt 0:01:07]} 5. Bf4 {[%emt 0:00:17]} c6 {[%emt 0:00:49]} 6. e3 {[%emt 0:00:13]} Nbd7 {[%emt 0:02:38]} 7. c5 {[%emt 0:00:04]} b6 {[%emt 0:02:27] D37: Queen's Gambit Declined: 5 Bf4.} 8. b4 {[%emt 0:00:03]} Nh5 {[%emt 0:02:41]} 9. Bd3 {[%emt 0:00:08]} Bb7 {[%emt 0:02:04]} 10. O-O {[%emt 0:00:18]} Nxf4 {[%emt 0:00:09]} 11. exf4 {[%emt 0:00:03]} O-O {[%emt 0:01:20]} 12. Qe2 {[%emt 0:00:18]} Bf6 {[%emt 0:01:07]} 13. Ne5 {[%emt 0:00:18]} g6 {[%emt 0:02:20]} 14. a4 {[%emt 0:11:57]} Qc7 {[%emt 0:03:30]} 15. Rfc1 {[%emt 0:01:27]} bxc5 {[%emt 0:01:35]} 16. bxc5 {[%emt 0:00:18]} a6 {[%emt 0:04:07]} 17. a5 {[%emt 0:01:57]} Rfb8 {[%emt 0:01:21]} 18. Na4 {[%emt 0:01:44]} Bxe5 {[%emt 0:02:37]} 19. fxe5 {[%emt 0:00:31]} Ra7 {[%emt 0:03:36]} 20. Nb6 {[%emt 0:00:39]} Nf8 {[%emt 0:00:41]} 21. Rc3 {[%emt 0:01:05]} Kg7 {[%emt 0:00:24]} 22. Rb1 {[%emt 0:03:41]} Qd8 {[%emt 0:01:44]} 23. Rcb3 {[%emt 0:01:21]} Qc7 {[%emt 0:00:12]} 24. Qd2 {[%emt 0:06:32]} Qd8 {[%emt 0:02:48]} 25. Qf4 {[%emt 0:00:37]} Qc7 {[%emt 0:01:48]} 26. h4 {[%emt 0:00:25]} h6 {[%emt 0:02:09]} 27. Bc2 {[%emt 0:12:02]} Qe7 {[%emt 0:02:04]} 28. Rf3 {[%emt 0:03:32]} Nh7 {[%emt 0:00:15]} 29. Rbb3 {[%emt 0:02:02]} Rf8 {[%emt 0:00:38]} 30. Rg3 {[%emt 0:03:37]} Ba8 {[%emt 0:05:06]} 31. Qg4 {[%emt 0:02:22]} Rc7 {[%emt 0:03:54]} 32. f4 {[%emt 0:06:33]} Bb7 {[%emt 0:02:47]} 33. Qh3 {[%emt 0:02:56]} f5 {[%emt 0:01:37]} 34. exf6+ {[%emt 0:04:37]} Rxf6 $18 {[%emt 0:00:28]} 35. h5 {[%emt 0:02:07]} g5 {[%emt 0:04:48]} 36. Qg4 {[%emt 0:12:00]} Qf7 {[%emt 0:02:02]} 37. Rbf3 {[%emt 0:03:27]} Kh8 {[%emt 0:02:12]} 38. Bg6 {[%emt 0:05:55]} Qf8 {[%emt 0:02:56]} 39. f5 {[%emt 0:05:08]} Bc8 {[%emt 0:04:40]} 40. Nxc8 {[%emt 0:05:08]} Qxc8 {[%emt 0:01:13]} 41. fxe6 {[%emt 0:32:03]} Qxe6 {[%emt 0:31:11]} 42. Qxe6 {[%emt 0:00:00]} Rxe6 {[%emt 0:00:00]} 43. Re3 {[%emt 0:00:00]} Nf8 {[%emt 0:00:00]} 44. Bf5 {[%emt 0:00:00]} Rf6 {[%emt 0:00:00]} 45. Rgf3 {[%emt 0:00:00]} Rb7 {[%emt 0:00:00]} 46. Bc8 {[%emt 0:00:00]} Rb1+ {[%emt 0:00:00]} 47. Kf2 {[%emt 0:00:00]} Rxf3+ {[%emt 0:00:00]} 48. Rxf3 {[%emt 0:00:00]} Kg7 {[%emt 0:00:00]} 49. Ra3 {[%emt 0:00:00]} Nh7 {[%emt 0:00:00]} 50. Bxa6 {[%emt 0:00:00]} Rb4 {[%emt 0:00:00]} 51. Bc8 {[%emt 0:00:00]} Nf6 {[%emt 0:00:00]} 52. a6 {[%emt 0:00:00]} Ne8 {[%emt 0:00:00]} 53. Ke3 {[%emt 0:00:00]} Nc7 {[%emt 0:00:00]} 54. Bd7 {[%emt 0:00:00]} Nb5 {[%emt 0:00:00]} 55. a7 {[%emt 0:00:00]} Nxa3 {[%emt 0:00:00]} 56. a8=Q {[%emt 0:00:00]} Nc4+ {[%emt 0:00:00]} 57. Kf3 {[%emt 0:00:00]} Rb3+ {[%emt 0:00:00]} 58. Kf2 {[%emt 0:00:00]} Rb2+ {[%emt 0:00:00]} 59. Kg3 {[%emt 0:00:00]} Ne3 {[%emt 0:00:00]} 60. Bh3 {[%emt 0:00:00]} Nf1+ {[%emt 0:00:00]} 61. Kg4 {[%emt 0:00:00]} Rf2 {[%emt 0:00:00]} 62. Qb7+ {[%emt 0:00:00]} Rf7 {[%emt 0:00:00]} 63. Qxf7+ {[%emt 0:00:00]} Kxf7 {[%emt 0:00:00]} 64. Kf5 {[%emt 0:00:00]} Ne3+ {[%emt 0:00:00]} 65. Ke5 {[%emt 0:00:00]} Ke7 {[%emt 0:00:00]} 66. g4 {[%emt 0:00:15]} Nc4+ {[%emt 0:00:00]} 67. Kf5 {[%emt 0:00:03]} Kf7 {[%emt 0:00:00]} 68. Bf1 {[%emt 0:00:49]} Ne3+ {[%emt 0:00:00]} 69. Ke5 {[%emt 0:00:02]} Nxf1 {[%emt 0:00:00]} 70. Kd6 {[%emt 0:00:01]} Ne3 {[%emt 0:00:00]} 71. Kxc6 {[%emt 0:00:03]} Ke7 {[%emt 0:00:05]} 72. Kb7 {[%emt 0:00:42]} Nc4 {[%emt 0:00:57]} 73. c6 {[%emt 0:01:22]} Nd6+ {[%emt 0:01:03]} 74. Kb6 {[%emt 0:02:18]} Ne8 {[%emt 0:01:19]} 75. Kc5 {[%emt 0:02:04]} Ke6 {[%emt 0:00:12]} 76. Kb6 {[%emt 0:00:21]} Kd6 {[%emt 0:00:11]} 77. Kb7 {[%emt 0:00:14]} Nc7 {[%emt 0:00:48]} 78. Kb6 {[%emt 0:00:01]} Ne6 {[%emt 0:01:53]} 1/2-1/2

[Event "Seniors-LEM-50 Sachsen-Anhalt 2024"]
[Site "Magdeburg"]
[Date "2024.07.02"]
[Round "2.4"]
[White "Fabig, Holger"]
[Black "Wahrenberg, Ralf"]
[Result "1-0"]
[ECO "C44"]
[WhiteElo "1969"]
[BlackElo "1873"]
[Annotator "NA RC"]
[PlyCount "63"]
[EventDate "2024.06.25"]
[EventType "swiss"]
[EventCountry "GER"]
[SourceTitle "playchess.com"]
[Source "ChessBase"]
[SourceQuality "1"]
[TimeControl "40/5400+30:1800+30"]

1. e4 {[%emt 0:00:04]} e5 {[%emt 0:00:07]} 2. d4 {[%emt 0:00:08]} exd4 {[%emt 0:00:08]} 3. c3 {[%emt 0:00:06]} dxc3 {[%emt 0:07:52]} 4. Nxc3 {[%emt 0:00:04]} Nc6 {[%emt 0:01:57]} 5. Nf3 {[%emt 0:00:09]} Bb4 {[%emt 0:09:40]} 6. Bc4 {[%emt 0:00:20]} Nge7 {[%emt 0:05:05]} 7. Ng5 {[%emt 0:09:15]} Bxc3+ {[%emt 0:09:54]} 8. bxc3 {[%emt 0:00:03]} Ne5 {[%emt 0:01:57]} 9. Bb3 {[%emt 0:05:48]} O-O {[%emt 0:18:48]} 10. Nxh7 {[%emt 0:03:10]} Kxh7 {[%emt 0:00:25]} 11. Qh5+ {[%emt 0:00:10]} Kg8 {[%emt 0:00:22]} 12. Qxe5 {[%emt 0:00:02]} Nc6 {[%emt 0:05:53]} 13. Qg3 {[%emt 0:01:19]} Qf6 {[%emt 0:02:23]} 14. O-O {[%emt 0:02:59]} Na5 {[%emt 0:11:02]} 15. Bc2 {[%emt 0:00:30]} d6 {[%emt 0:00:57]} 16. f4 {[%emt 0:03:12]} Nc6 {[%emt 0:01:49]} 17. f5 {[%emt 0:02:44]} Re8 {[%emt 0:05:27]} 18. Bg5 {[%emt 0:03:59]} Qe5 {[%emt 0:00:02]} 19. Qh4 {[%emt 0:04:31]} Ne7 {[%emt 0:08:11]} 20. Rf3 {[%emt 0:01:43]} Bd7 {[%emt 0:02:32]} 21. Rh3 {[%emt 0:00:41]} f6 {[%emt 0:02:24]} 22. Qh7+ {[%emt 0:08:29]} Kf8 {[%emt 0:00:14]} 23. Bh6 gxh6 {[%emt 0:01:47]} 24. Rg3 {[%emt 0:00:43]} Qxg3 {[%emt 0:02:15]} 25. hxg3 {[%emt 0:00:03]} d5 {[%emt 0:01:10]} 26. exd5 {[%emt 0:02:14]} Rad8 {[%emt 0:00:07]} 27. Qxh6+ {[%emt 0:00:47]} Kf7 {[%emt 0:00:04]} 28. Bd1 {[%emt 0:00:25]} Rh8 {[%emt 0:01:22]} 29. Bh5+ {[%emt 0:03:29]} Kg8 {[%emt 0:00:02]} 30. Qxf6 {[%emt 0:00:52]} Rxh5 {[%emt 0:00:50]} 31. Qxe7 {[%emt 0:00:03]} Rf8 {[%emt 0:00:29]} 32. Qxd7 {[%emt 0:00:59]} 1-0

[Event "Seniors-LEM-50 Sachsen-Anhalt 2024"]
[Site "Magdeburg"]
[Date "2024.07.02"]
[Round "2.5"]
[White "Richter, Juergen"]
[Black "Klanten, Christoph"]
[Result "1/2-1/2"]
[ECO "B20"]
[WhiteElo "1841"]
[BlackElo "1968"]
[Annotator "NA RC"]
[PlyCount "45"]
[EventDate "2024.06.25"]
[EventType "swiss"]
[EventCountry "GER"]
[SourceTitle "playchess.com"]
[Source "ChessBase"]
[SourceQuality "1"]
[TimeControl "40/5400+30:1800+30"]

1. e4 {[%emt 0:00:04]} c5 {[%emt 0:00:02]} 2. c4 {[%emt 0:01:44]} Nc6 {[%emt 0:00:13]} 3. Ne2 {[%emt 0:01:28]} d6 {[%emt 0:00:30]} 4. d3 {[%emt 0:00:58]} Nf6 {[%emt 0:00:51]} 5. h3 {[%emt 0:00:33]} g6 {[%emt 0:00:48]} 6. g4 {[%emt 0:02:03]} Bg7 {[%emt 0:01:10]} 7. Bg2 {[%emt 0:01:10]} O-O {[%emt 0:01:57]} 8. O-O {[%emt 0:01:14]} Bd7 {[%emt 0:03:44]} 9. Nbc3 {[%emt 0:00:42]} a6 {[%emt 0:02:06]} 10. Be3 {[%emt 0:00:52]} Rb8 {[%emt 0:01:28]} 11. Qd2 {[%emt 0:00:19]} b5 {[%emt 0:03:50]} 12. Rab1 {[%emt 0:01:43]} Qa5 {[%emt 0:06:24]} 13. b3 {[%emt 0:02:00]} Rfd8 {[%emt 0:07:36]} 14. g5 {[%emt 0:00:42]} Nh5 {[%emt 0:03:28]} 15. Nd5 {[%emt 0:01:25]} Qxd2 {[%emt 0:03:44]} 16. Bxd2 {[%emt 0:00:16]} e6 {[%emt 0:03:30]} 17. Ne3 {[%emt 0:01:19]} Nb4 {[%emt 0:04:11]} 18. Bxb4 {[%emt 0:01:21]} cxb4 {[%emt 0:02:28]} 19. Bf3 {[%emt 0:00:36]} h6 {[%emt 0:07:50]} 20. Bxh5 {[%emt 0:08:15]} gxh5 {[%emt 0:00:09]} 21. gxh6 {[%emt 0:00:35]} Bxh6 {[%emt 0:01:25]} 22. Ng3 {[%emt 0:00:22]} h4 {[%emt 0:06:47]} 23. Nh5 {[%emt 0:00:11]} 1/2-1/2

[Event "Seniors-LEM-50 Sachsen-Anhalt 2024"]
[Site "Magdeburg"]
[Date "2024.07.02"]
[Round "2.6"]
[White "Frankenberger, Ralf"]
[Black "Hencke, Heiko"]
[Result "1/2-1/2"]
[ECO "D05"]
[WhiteElo "1939"]
[BlackElo "1855"]
[Annotator "NA RC"]
[PlyCount "35"]
[EventDate "2024.06.25"]
[EventType "swiss"]
[EventCountry "GER"]
[SourceTitle "playchess.com"]
[Source "ChessBase"]
[SourceQuality "1"]
[TimeControl "40/5400+30:1800+30"]

1. d4 {[%emt 0:00:03]} d5 {[%emt 0:00:09]} 2. Nf3 {[%emt 0:00:16]} Nf6 {[%emt 0:00:25]} 3. e3 {[%emt 0:02:16]} e6 {[%emt 0:00:37]} 4. Bd3 {[%emt 0:03:16]} c5 {[%emt 0:02:49]} 5. c3 {[%emt 0:00:23]} Bd6 {[%emt 0:01:44]} 6. Nbd2 {[%emt 0:04:09]} O-O {[%emt 0:01:10]} 7. O-O {[%emt 0:00:06]} Nc6 {[%emt 0:04:54]} 8. Qe2 {[%emt 0:08:45]} Qc7 {[%emt 0:04:19]} 9. h3 {[%emt 0:11:36]} h6 {[%emt 0:03:08]} 10. Re1 {[%emt 0:08:00]} Bd7 {[%emt 0:02:46]} 11. e4 {[%emt 0:04:44]} dxe4 {[%emt 0:01:44]} 12. Nxe4 {[%emt 0:01:57]} Nxe4 {[%emt 0:00:40]} 13. Qxe4 {[%emt 0:00:36]} f5 {[%emt 0:00:25]} 14. Qe3 {[%emt 0:07:47]} cxd4 {[%emt 0:01:38]} 15. cxd4 {[%emt 0:02:13]} Nb4 {[%emt 0:05:26]} 16. Bd2 {[%emt 0:06:26]} Nxd3 {[%emt 0:01:01]} 17. Qxd3 {[%emt 0:00:53]} Rac8 {[%emt 0:05:15]} 18. Bc3 {[%emt 0:01:15]} 1/2-1/2

[Event "Seniors-LEM-50 Sachsen-Anhalt 2024"]
[Site "Magdeburg"]
[Date "2024.07.02"]
[Round "2.7"]
[White "Ackermann, Robert"]
[Black "Wirp, Hans-Werner"]
[Result "1/2-1/2"]
[ECO "C55"]
[WhiteElo "2041"]
[BlackElo "1841"]
[Annotator "NA RC"]
[PlyCount "27"]
[EventDate "2024.06.25"]
[EventType "swiss"]
[EventCountry "GER"]
[SourceTitle "playchess.com"]
[Source "ChessBase"]
[SourceQuality "1"]
[TimeControl "40/5400+30:1800+30"]

1. e4 {[%emt 0:00:03]} e5 {[%emt 0:09:54]} 2. Nf3 {[%emt 0:00:19]} Nc6 {[%emt 0:00:10]} 3. Bc4 {[%emt 0:00:26]} Nf6 {[%emt 0:00:11]} 4. d3 {[%emt 0:01:15]} Be7 {[%emt 0:00:22]} 5. O-O {[%emt 0:00:24]} O-O {[%emt 0:00:18]} 6. Bg5 {[%emt 0:00:43]} d6 {[%emt 0:00:44]} 7. Re1 {[%emt 0:00:35]} Na5 {[%emt 0:02:10]} 8. Bb3 {[%emt 0:00:31]} h6 {[%emt 0:00:30]} 9. Bh4 {[%emt 0:00:12]} Nh7 {[%emt 0:01:16]} 10. Bxe7 {[%emt 0:00:27]} Qxe7 {[%emt 0:00:14]} 11. c3 {[%emt 0:00:55]} Nxb3 {[%emt 0:00:14]} 12. axb3 {[%emt 0:00:34]} f5 {[%emt 0:00:42]} 13. exf5 {[%emt 0:00:43]} Bxf5 {[%emt 0:00:39]} 14. Qe2 {[%emt 1:30:23]} 1/2-1/2

[Event "Seniors-LEM-50 Sachsen-Anhalt 2024"]
[Site "Magdeburg"]
[Date "2024.07.02"]
[Round "2.8"]
[White "Kottke, Steffen"]
[Black "Buciu, Aurel-John"]
[Result "1/2-1/2"]
[ECO "B01"]
[WhiteElo "1933"]
[BlackElo "1807"]
[Annotator "NA RC"]
[PlyCount "41"]
[EventDate "2024.06.25"]
[EventType "swiss"]
[EventCountry "GER"]
[SourceTitle "playchess.com"]
[Source "ChessBase"]
[SourceQuality "1"]
[TimeControl "40/5400+30:1800+30"]

1. e4 {[%emt 0:00:04]} d5 {[%emt 0:00:58]} 2. exd5 {[%emt 0:00:14]} Qxd5 {[%emt 0:00:06]} 3. Nc3 {[%emt 0:00:24]} Qd8 {[%emt 0:00:08]} 4. Bc4 {[%emt 0:02:15]} Bf5 {[%emt 0:00:47]} 5. Qf3 {[%emt 0:03:01]} Qc8 {[%emt 0:00:10]} 6. Bxf7+ {[%emt 0:02:01]} Kxf7 {[%emt 0:00:08]} 7. g4 {[%emt 0:00:14]} g6 {[%emt 0:00:10]} 8. Nge2 {[%emt 0:00:51]} c6 {[%emt 0:01:07]} 9. gxf5 {[%emt 0:07:04]} Qxf5 {[%emt 0:02:29]} 10. Nd4 {[%emt 0:00:55]} Qxf3 {[%emt 0:03:50]} 11. Nxf3 {[%emt 0:00:08]} Na6 {[%emt 0:09:55]} 12. a3 {[%emt 0:05:30]} Nf6 {[%emt 0:01:16]} 13. d3 {[%emt 0:05:01]} Nc7 {[%emt 0:01:21]} 14. Ng5+ {[%emt 0:05:03]} Ke8 {[%emt 0:05:19]} 15. Bf4 {[%emt 0:04:03]} Ncd5 {[%emt 0:06:55]} 16. Nxd5 {[%emt 0:16:55]} cxd5 {[%emt 0:01:45]} 17. Be5 {[%emt 0:07:34]} h6 {[%emt 0:04:23]} 18. Ne6 {[%emt 0:00:44]} Kf7 {[%emt 0:00:42]} 19. Nd4 {[%emt 0:08:51]} Bg7 {[%emt 0:03:44]} 20. Rg1 {[%emt 0:02:34]} Nh5 {[%emt 0:02:02]} 21. Nf3 {[%emt 0:05:22]} 1/2-1/2

[Event "Seniors-LEM-50 Sachsen-Anhalt 2024"]
[Site "Magdeburg"]
[Date "2024.07.02"]
[Round "2.9"]
[White "Langner, Hans-Rainer"]
[Black "Leib, Britta"]
[Result "1-0"]
[ECO "E91"]
[WhiteElo "1730"]
[BlackElo "1920"]
[Annotator "NA RC"]
[PlyCount "131"]
[EventDate "2024.06.25"]
[EventType "swiss"]
[EventCountry "GER"]
[SourceTitle "playchess.com"]
[Source "ChessBase"]
[SourceQuality "1"]
[TimeControl "40/5400+30:1800+30"]

1. d4 {[%emt 0:02:14]} Nf6 {[%emt 0:00:11]} 2. c4 {[%emt 0:00:19]} g6 {[%emt 0:00:33]} 3. Nc3 {[%emt 0:00:15]} Bg7 {[%emt 0:00:26]} 4. e4 {[%emt 0:00:27]} d6 {[%emt 0:00:29]} 5. h3 {[%emt 0:00:19]} O-O {[%emt 0:01:12]} 6. Nf3 {[%emt 0:00:48]} c6 {[%emt 0:08:07]} 7. Be2 {[%emt 0:00:27]} Nbd7 {[%emt 0:01:53]} 8. Bf4 {[%emt 0:03:59]} Qa5 {[%emt 0:16:21]} 9. Qd2 {[%emt 0:03:18]} e5 {[%emt 0:03:27]} 10. dxe5 {[%emt 0:03:39]} dxe5 {[%emt 0:00:55]} 11. Bh6 {[%emt 0:00:42]} Re8 {[%emt 0:23:09]} 12. Bxg7 {[%emt 0:00:48]} Kxg7 {[%emt 0:00:02]} 13. O-O {[%emt 0:04:21]} Nc5 {[%emt 0:04:41]} 14. Qc2 {[%emt 0:01:17]} Ne6 {[%emt 0:08:23]} 15. Rfd1 {[%emt 0:03:55]} Nf4 {[%emt 0:00:40]} 16. Bf1 {[%emt 0:00:27]} Qc7 {[%emt 0:02:08]} 17. b4 {[%emt 0:04:00]} Qe7 {[%emt 0:00:54]} 18. c5 {[%emt 0:03:16]} h6 {[%emt 0:07:31]} 19. Ne2 {[%emt 0:04:35]} N6h5 {[%emt 0:00:55]} 20. Ng3 {[%emt 0:03:58]} f6 {[%emt 0:07:44]} 21. Nxh5+ {[%emt 0:03:46]} Nxh5 {[%emt 0:00:15]} 22. Nd2 {[%emt 0:01:33]} Nf4 {[%emt 0:01:01]} 23. Nc4 {[%emt 0:00:53]} Be6 {[%emt 0:02:41]} 24. Nd6 {[%emt 0:01:13]} Red8 {[%emt 0:00:12]} 25. f3 {[%emt 0:02:41]} Rd7 {[%emt 0:01:31]} 26. Rd2 {[%emt 0:00:24]} Rad8 {[%emt 0:00:30]} 27. Rad1 {[%emt 0:00:45]} Bg8 {[%emt 0:02:07]} 28. a4 {[%emt 0:01:03]} Ne6 {[%emt 0:00:25]} 29. Rd3 {[%emt 0:03:07]} Nd4 {[%emt 0:00:57]} 30. Qb2 {[%emt 0:06:27]} Qe6 {[%emt 0:02:04]} 31. R1d2 {[%emt 0:15:34]} Nb3 {[%emt 0:00:56]} 32. Rf2 {[%emt 0:01:36]} b6 {[%emt 0:00:49]} 33. f4 {[%emt 0:01:44]} bxc5 {[%emt 0:00:34]} 34. f5 {[%emt 0:03:14]} Qe7 {[%emt 0:00:02]} 35. Rg3 {[%emt 0:03:05]} g5 {[%emt 0:00:59]} 36. Nc4 {[%emt 0:00:21]} Nd4 {[%emt 0:01:08]} 37. h4 {[%emt 0:03:51]} Kf8 {[%emt 0:01:18]} 38. hxg5 {[%emt 0:01:05]} hxg5 {[%emt 0:00:04]} 39. b5 {[%emt 0:03:52]} cxb5 {[%emt 0:02:46]} 40. axb5 {[%emt 0:00:44]} Rb7 {[%emt 0:00:00]} 41. Ne3 {[%emt 0:31:35]} a6 {[%emt 0:29:58]} 42. Nd5 {[%emt 0:00:40]} Bxd5 {[%emt 0:00:00]} 43. exd5 {[%emt 0:00:00]} axb5 {[%emt 0:00:00]} 44. Rh3 {[%emt 0:00:00]} Kg8 {[%emt 0:00:00]} 45. g4 {[%emt 0:00:00]} c4 {[%emt 0:00:00]} 46. Rfh2 {[%emt 0:00:00]} Qg7 {[%emt 0:00:00]} 47. Rh6 {[%emt 0:00:00]} Nf3+ {[%emt 0:00:00]} 48. Kh1 {[%emt 0:12:13]} Nh4 {[%emt 0:00:00]} 49. R2xh4 {[%emt 0:00:30]} gxh4 {[%emt 0:05:02]} 50. Rg6 {[%emt 0:00:00]} Rdd7 {[%emt 0:00:00]} 51. Bg2 {[%emt 0:00:00]} b4 {[%emt 0:00:00]} 52. Qa2 {[%emt 0:00:00]} b3 {[%emt 0:00:36]} 53. Qa8+ {[%emt 0:00:00]} Kh7 {[%emt 0:00:21]} 54. Rxg7+ {[%emt 0:00:00]} Rxg7 {[%emt 0:00:42]} 55. d6 {[%emt 0:00:00]} b2 {[%emt 0:00:35]} 56. Be4 {[%emt 0:00:00]} b1=Q+ {[%emt 0:01:16]} 57. Bxb1 {[%emt 0:00:00]} Rxb1+ {[%emt 0:00:00]} 58. Kg2 {[%emt 0:00:00]} Rd1 {[%emt 0:00:00]} 59. Qe4 {[%emt 0:00:00]} Rd4 {[%emt 0:00:00]} 60. Qc6 {[%emt 0:00:00]} Rdxg4+ {[%emt 0:00:19]} 61. Kf2 {[%emt 0:00:00]} Rd4 {[%emt 0:01:08]} 62. Qe8 {[%emt 0:06:30]} Rg8 {[%emt 0:00:59]} 63. Qh5+ {[%emt 0:00:00]} Kg7 {[%emt 0:00:03]} 64. Qg6+ {[%emt 0:00:00]} Kf8 {[%emt 0:00:45]} 65. Qxf6+ {[%emt 0:00:00]} Ke8 {[%emt 0:00:30]} 66. Qe7# {[%emt 0:00:00]} 1-0